fUST/lending_fUST_20241118
["ID","MTS","AMOUNT","RATE_DAILY","PERIOD"]
[342459919,1731904239357,-740.510044,0.00016,2]
[342459921,1731904239367,-740.510044,0.00016,2]
[342459924,1731904239376,-740.510044,0.00016,2]
[342459926,1731904239386,-740.510044,0.00016,2]
[342459928,1731904239395,-740.510044,0.00016,2]
[342459930,1731904239405,-151.0,0.00016,2]
[342459933,1731904239414,-687.2919,0.00016,2]
[342459935,1731904239425,-687.291899,0.00016,2]
[342459937,1731904239436,-3962.257398,0.00016,2]
[342459939,1731904239445,-3962.25739,0.00016,2]
[342459941,1731904239454,-809.444549,0.00016,2]
[342459943,1731904239464,-809.444547,0.00016,2]
[342459945,1731904239473,-513.049867,0.00016067,2]
[342459947,1731904239483,-513.049867,0.00016067,2]
[342459948,1731904239492,-151.0,0.00016067,2]
[342459951,1731904239501,-221.081934,0.00016067,2]
[342459952,1731904239510,-221.081934,0.00016067,2]
[342459954,1731904239520,-174.575789,0.00016067,2]
[342459957,1731904239532,-174.575789,0.00016067,2]
[342459958,1731904239544,-1202.549247,0.00016067,2]
[342459961,1731904239554,-1202.549247,0.00016067,2]
[342459962,1731904239564,-1057.291072,0.00016067,2]
[342459963,1731904239575,-1057.291072,0.00016067,2]
[342459965,1731904239585,-151.0,0.00016067,2]
[342459967,1731904239594,-164.808358,0.00016067,2]
[342459969,1731904239604,-164.808358,0.00016067,2]
[342459970,1731904239615,-500.48638295,0.00016073,2]
[342459971,1731904239626,-515.07624906,0.00016073,2]
[342459972,1731904239636,-500.68950534,0.00016073,2]
[342459974,1731904239647,-228.29467425,0.00016073,2]
[342459975,1731904239656,-500.46508248,0.00016073,2]
[342459977,1731904239666,-500.55988657,0.00016073,2]
[342459978,1731904239675,-717.65603,0.00016073,2]
[342459979,1731904239685,-717.65603,0.00016073,2]
[342459981,1731904239695,-151.0,0.00016073,2]
[342459982,1731904239704,-234.99435,0.00016073,2]
[342459983,1731904239714,-234.99435,0.00016073,2]
[342459984,1731904239723,-740.510044,0.00016073,2]
[342459985,1731904239733,-740.510044,0.00016073,2]
[342459986,1731904239742,-717.65603,0.00016076,2]
[342459987,1731904239751,-717.656037,0.00016076,2]
[342459988,1731904239760,-151.0,0.00016076,2]
[342459989,1731904239770,-234.99435,0.00016076,2]
[342459990,1731904239779,-234.994342,0.00016076,2]
[342459991,1731904239789,-740.510044,0.00016076,2]
[342459992,1731904239799,-740.51004,0.00016076,2]
[342459993,1731904239808,-174.575789,0.00016078,2]
[342459994,1731904239818,-174.575789,0.00016078,2]
[342459995,1731904239827,-174.575789,0.00016078,2]
[342459996,1731904239837,-174.575789,0.00016078,2]
[342459997,1731904239846,-174.575789,0.00016078,2]
[342459998,1731904239855,-174.575789,0.00016078,2]
[342459999,1731904239865,-174.575789,0.00016078,2]
[342460000,1731904239875,-174.575785,0.00016078,2]
[342460001,1731904239884,-1202.549247,0.00016078,2]
[342460002,1731904239894,-1202.549247,0.00016078,2]
[342460003,1731904239903,-1202.549247,0.00016078,2]
[342460004,1731904239912,-1202.549247,0.00016078,2]
[342460005,1731904239922,-1057.291072,0.00016078,2]
[342460006,1731904239931,-1057.291072,0.00016078,2]
[342460007,1731904239941,-1057.291072,0.00016078,2]
[342460008,1731904239950,-1057.291068,0.00016078,2]
[342460009,1731904239960,-151.0,0.00016078,2]
[342460010,1731904239969,-151.0,0.00016078,2]
[342460011,1731904239979,-164.808358,0.00016078,2]
[342460012,1731904239990,-164.808358,0.00016078,2]
[342460014,1731904239999,-164.808358,0.00016078,2]
[342460016,1731904240008,-164.808357,0.00016078,2]
[342460017,1731904240017,-210.493685,0.00016079,2]
[342460019,1731904240027,-513.049867,0.0001608,2]
[342460020,1731904240036,-513.049867,0.0001608,2]
[342460021,1731904240046,-513.049867,0.0001608,2]
[342460023,1731904240056,-513.049867,0.0001608,2]
[342460024,1731904240065,-513.049867,0.0001608,2]
[342460026,1731904240075,-513.049867,0.0001608,2]
[342460028,1731904240086,-513.049867,0.0001608,2]
[342460029,1731904240095,-513.049867,0.0001608,2]
[342460031,1731904240104,-513.049867,0.0001608,2]
[342460032,1731904240114,-513.049867,0.0001608,2]
[342460033,1731904240124,-513.049867,0.0001608,2]
[342460034,1731904240133,-513.049862,0.0001608,2]
[342460035,1731904240143,-221.081934,0.0001608,2]
[342460036,1731904240152,-221.081934,0.0001608,2]
[342460037,1731904240162,-221.081934,0.0001608,2]
[342460038,1731904240172,-221.081934,0.0001608,2]
[342460039,1731904240182,-221.081934,0.0001608,2]
[342460040,1731904240191,-221.081934,0.0001608,2]
[342460041,1731904240201,-221.081934,0.0001608,2]
[342460042,1731904240210,-221.081934,0.0001608,2]
[342460043,1731904240221,-221.081934,0.0001608,2]
[342460044,1731904240233,-221.081934,0.0001608,2]
[342460045,1731904240242,-221.081934,0.0001608,2]
[342460046,1731904240252,-221.081938,0.0001608,2]
[342460047,1731904240262,-151.0,0.00016081,2]
[342460048,1731904240272,-923.570803,0.00016081,2]
[342460049,1731904240281,-923.570803,0.00016081,2]
[342460050,1731904240292,-151.0,0.00016081,2]
[342460051,1731904240303,-151.0,0.00016081,2]
[342460052,1731904240313,-205.02822,0.00016081,2]
[342460053,1731904240325,-205.02822,0.00016081,2]
[342460054,1731904240335,-151.0,0.00016081,2]
[342460055,1731904240344,-365.849688,0.00016081,2]
[342460056,1731904240354,-151.0,0.00016081,2]
[342460057,1731904240364,-354.771992,0.00016081,2]
[342460058,1731904240373,-354.771992,0.00016081,2]
[342460059,1731904240383,-354.771992,0.00016081,2]
[342460060,1731904240394,-354.771992,0.00016081,2]
[342460061,1731904240404,-151.0,0.00016081,2]
[342460062,1731904240414,-151.0,0.00016081,2]
[342460063,1731904240425,-152.552553,0.00016081,2]
[342460064,1731904240434,-181.351344,0.00016081,2]
[342460065,1731904240444,-181.351344,0.00016081,2]
[342460066,1731904240454,-181.351344,0.00016081,2]
[342460067,1731904240465,-181.351344,0.00016081,2]
[342460068,1731904240476,-181.351344,0.00016081,2]
[342460069,1731904240487,-181.351344,0.00016081,2]
[342460070,1731904240496,-151.0,0.00016081,2]
[342460071,1731904240506,-151.0,0.00016081,2]
[342460072,1731904240515,-151.0,0.00016081,2]
[342460073,1731904240524,-454.135121,0.00016081,2]
[342460074,1731904240534,-454.135121,0.00016081,2]
[342460075,1731904240545,-454.135121,0.00016081,2]
[342460076,1731904240555,-151.0,0.00016081,2]
[342460077,1731904240565,-454.135121,0.00016081,2]
[342460078,1731904240574,-151.0,0.00016081,2]
[342460079,1731904240584,-454.135121,0.00016081,2]
[342460080,1731904240595,-151.0,0.00016081,2]
[342460081,1731904240606,-454.135121,0.00016081,2]
[342460082,1731904240615,-151.0,0.00016081,2]
[342460083,1731904240625,-151.0,0.00016081,2]
[342460084,1731904240635,-292.361566,0.00016081,2]
[342460085,1731904240644,-184.144114,0.00016081,2]
[342460086,1731904240654,-184.144114,0.00016081,2]
[342460087,1731904240663,-184.144114,0.00016081,2]
[342460088,1731904240673,-184.144114,0.00016081,2]
[342460089,1731904240682,-184.144114,0.00016081,2]
[342460090,1731904240691,-184.144114,0.00016081,2]
[342460091,1731904240701,-151.0,0.00016081,2]
[342460092,1731904240711,-151.0,0.00016081,2]
[342460093,1731904240721,-151.0,0.00016081,2]
[342460094,1731904240730,-151.0,0.00016081,2]
[342460095,1731904240740,-151.0,0.00016081,2]
[342460096,1731904240749,-151.0,0.00016081,2]
[342460097,1731904240759,-1924.343288,0.00016081,2]
[342460098,1731904240768,-1924.343288,0.00016081,2]
[342460099,1731904240777,-1924.343288,0.00016081,2]
[342460100,1731904240786,-1924.343288,0.00016081,2]
[342460101,1731904240795,-1924.343288,0.00016081,2]
[342460102,1731904240806,-1924.343288,0.00016081,2]
[342460103,1731904240815,-151.0,0.00016081,2]
[342460104,1731904240824,-151.0,0.00016081,2]
[342460105,1731904240833,-151.0,0.00016081,2]
[342460106,1731904240842,-151.0,0.00016081,2]
[342460107,1731904240852,-151.0,0.00016081,2]
[342460108,1731904240861,-151.0,0.00016081,2]
[342460109,1731904240871,-501.29771105,0.00016136,2]
[342460110,1731904240880,-151.0,0.00016186,2]
[342460111,1731904240889,-151.0,0.00016186,2]
[342460112,1731904240900,-151.0,0.00016186,2]
[342460113,1731904240909,-151.0,0.00016186,2]
[342460114,1731904240918,-151.0,0.00016186,2]
[342460115,1731904240928,-289.495172,0.00016186,2]
[342460116,1731904240938,-151.0,0.00016271,2]
[342460117,1731904240947,-184.144114,0.00016408,2]
[342460118,1731904240957,-184.144114,0.00016408,2]
[342460119,1731904240967,-1924.343288,0.00016408,2]
[342460120,1731904240976,-1924.343288,0.00016408,2]
[342460121,1731904240987,-151.0,0.00016416,2]
[342460122,1731904240996,-354.771992,0.00016416,2]
[342460123,1731904241005,-354.771992,0.00016416,2]
[342460124,1731904241014,-159.653816,0.00016438,2]
[342460125,1731904241024,-151.0,0.00016441,2]
[342460126,1731904241033,-365.849688,0.00016441,2]
[342460127,1731904241042,-151.0,0.00016441,2]
[342460128,1731904241054,-151.0,0.00016441,2]
[342460129,1731904241064,-151.0,0.00016441,2]
[342460130,1731904241073,-152.666189,0.00016441,2]
[342460131,1731904241082,-151.0,0.00016441,2]
[342460132,1731904241091,-354.61280913,0.00016473,2]
[342460133,1731904241100,-203.9524387,0.00016473,2]
[342460134,1731904241109,-151.0,0.0001649,2]
[342460135,1731904241119,-151.0,0.0001649,2]
[342460136,1731904241128,-151.0,0.0001649,2]
[342460137,1731904241138,-151.0,0.0001649,2]
[342460138,1731904241147,-293.534767,0.0001649,2]
[342460139,1731904241157,-151.0,0.0001649,2]
[342460140,1731904241166,-151.0,0.0001649,2]
[342460141,1731904241175,-151.0,0.0001649,2]
[342460142,1731904241185,-151.0,0.0001649,2]
[342460143,1731904241194,-151.0,0.0001649,2]
[342460144,1731904241203,-151.0,0.0001649,2]
[342460145,1731904241212,-195.005371,0.00016491,2]
[342460146,1731904241222,-195.005371,0.00016491,2]
[342460147,1731904241231,-151.0,0.00016491,2]
[342460148,1731904241242,-205.02822,0.00016491,2]
[342460149,1731904241251,-205.02822,0.00016491,2]
[342460150,1731904241260,-151.0,0.00016491,2]
[342460151,1731904241270,-365.849688,0.00016491,2]
[342460152,1731904241280,-151.0,0.00016491,2]
[342460153,1731904241289,-354.771992,0.00016491,2]
[342460154,1731904241298,-354.771992,0.00016491,2]
[342460155,1731904241307,-151.0,0.00016491,2]
[342460156,1731904241316,-151.0,0.00016491,2]
[342460157,1731904241325,-151.0,0.00016491,2]
[342460158,1731904241335,-181.351344,0.00016491,2]
[342460159,1731904241344,-181.351344,0.00016491,2]
[342460160,1731904241354,-181.351344,0.00016491,2]
[342460161,1731904241363,-181.351344,0.00016491,2]
[342460162,1731904241373,-181.351344,0.00016491,2]
[342460163,1731904241382,-181.351344,0.00016491,2]
[342460164,1731904241392,-454.135121,0.00016491,2]
[342460165,1731904241401,-454.135121,0.00016491,2]
[342460166,1731904241411,-454.135121,0.00016491,2]
[342460167,1731904241422,-454.135121,0.00016491,2]
[342460168,1731904241432,-454.135121,0.00016491,2]
[342460169,1731904241441,-454.135121,0.00016491,2]
[342460170,1731904241451,-184.144114,0.00016491,2]
[342460171,1731904241461,-184.144114,0.00016491,2]
[342460172,1731904241471,-184.144114,0.00016491,2]
[342460173,1731904241481,-184.144114,0.00016491,2]
[342460174,1731904241492,-184.144114,0.00016491,2]
[342460175,1731904241501,-184.144114,0.00016491,2]
[342460176,1731904241511,-1924.343288,0.00016491,2]
[342460177,1731904241519,-1924.343288,0.00016491,2]
[342460178,1731904241529,-1924.343288,0.00016491,2]
[342460179,1731904241542,-1924.343288,0.00016491,2]
[342460180,1731904241551,-1924.343288,0.00016491,2]
[342460181,1731904241560,-1924.343288,0.00016491,2]
[342460182,1731904241569,-184.144114,0.00016529,2]
[342460183,1731904241579,-184.144114,0.00016529,2]
[342460184,1731904241589,-1924.343288,0.00016529,2]
[342460185,1731904241599,-1924.343288,0.00016529,2]
[342460186,1731904241613,-369.0,0.0001659,2]
[342460187,1731904241622,-354.771992,0.00016603,2]
[342460188,1731904241632,-354.771992,0.00016603,2]
[342460189,1731904241642,-184.144114,0.00016669,2]
[342460190,1731904241652,-184.144105,0.00016669,2]
[342460191,1731904241662,-1924.343288,0.00016669,2]
[342460192,1731904241672,-1924.343283,0.00016669,2]
[342460193,1731904241681,-205.02822,0.0001667,2]
[342460194,1731904241691,-205.02822,0.0001667,2]
[342460195,1731904241701,-151.0,0.0001667,2]
[342460196,1731904241711,-365.849688,0.0001667,2]
[342460197,1731904241910,-211.085094,0.0001667,2]
[342460198,1731904241955,-354.771992,0.0001667,2]
[342460199,1731904241965,-354.771992,0.0001667,2]
[342460200,1731904241975,-151.0,0.0001667,2]
[342460201,1731904241988,-151.0,0.0001667,2]
[342460202,1731904242003,-181.351344,0.0001667,2]
[342460203,1731904242013,-181.351344,0.0001667,2]
[342460204,1731904242022,-181.351344,0.0001667,2]
[342460205,1731904242031,-181.351344,0.0001667,2]
[342460206,1731904242041,-454.135121,0.0001667,2]
[342460207,1731904242050,-454.135121,0.0001667,2]
[342460208,1731904242060,-454.135121,0.0001667,2]
[342460209,1731904242074,-454.135121,0.0001667,2]
[342460210,1731904242085,-151.0,0.00016696,2]
[342460211,1731904242095,-181.351344,0.00016696,2]
[342460212,1731904242104,-181.35135,0.00016696,2]
[342460213,1731904242115,-454.135121,0.00016696,2]
[342460214,1731904242125,-454.135126,0.00016696,2]
[342460215,1731904242135,-923.570803,0.00016697,2]
[342460216,1731904242144,-923.570803,0.00016697,2]
[342460217,1731904242155,-151.0,0.00016697,2]
[342460218,1731904242164,-151.0,0.00016697,2]
[342460219,1731904242175,-151.0,0.00016697,2]
[342460220,1731904242188,-365.849688,0.00016697,2]
[342460221,1731904242198,-354.771992,0.00016697,2]
[342460222,1731904242208,-354.771992,0.00016697,2]
[342460223,1731904242218,-354.771992,0.00016758,2]
[342460224,1731904242229,-354.771992,0.00016758,2]
[342460225,1731904242242,-354.771992,0.00016758,2]
[342460226,1731904242252,-354.771992,0.00016758,2]
[342460227,1731904242263,-354.771992,0.00016758,2]
[342460228,1731904242276,-354.771988,0.00016758,2]
[342460229,1731904242287,-151.0,0.00016759,2]
[342460230,1731904242297,-365.849688,0.00016759,2]
[342460231,1731904242307,-105724.88450065,0.0001676,2]
[342460242,1731904243172,-500.0,0.00015995,2]
[342460243,1731904243182,-1061.18219601,0.0001676,2]
[342460244,1731904243248,-1120.120109,0.0001676,2]
[342460245,1731904243260,-3520.78039839,0.0001676,2]
[342460249,1731904328871,222.59,0.00010959,2]
[342460250,1731904339389,772.84,0.00010959,2]
[342460303,1731905432337,-3000.0,0.00015035,2]
[342460304,1731905432347,-23.10880517,0.00015395,2]
[342460320,1731905442128,-226.89119483,0.00015395,2]
[342460321,1731905442138,-532.59789464,0.00015666,2]
[342460322,1731905442148,-445.61100711,0.00015766,2]
[342460323,1731905442157,-743.41886272,0.00015766,2]
[342460324,1731905442166,-300.0,0.00015865,2]
[342460325,1731905442176,-237.802297,0.00015866,2]
[342460326,1731905442186,-237.802297,0.00015866,2]
[342460327,1731905442196,-175.504834,0.00015866,2]
[342460328,1731905442205,-175.504834,0.00015866,2]
[342460329,1731905442214,-265.308917,0.00015866,2]
[342460330,1731905442224,-265.308917,0.00015866,2]
[342460331,1731905442234,-153.015152,0.00015866,2]
[342460332,1731905442243,-237.802297,0.00015881,2]
[342460333,1731905442254,-237.802297,0.00015881,2]
[342460334,1731905442264,-265.308917,0.00015881,2]
[342460335,1731905442274,-258.9673067,0.00015881,2]
[342460442,1731906632323,-166.099939,0.00015227,2]
[342460443,1731906632333,-166.099939,0.00015233,2]
[342460444,1731906632344,-166.099939,0.0001524,2]
[342460445,1731906632354,-166.099939,0.00015246,2]
[342460446,1731906632363,-166.099939,0.00015252,2]
[342460447,1731906632373,-166.099939,0.00015259,2]
[342460448,1731906632383,-166.099939,0.00015265,2]
[342460449,1731906632393,-166.099939,0.00015271,2]
[342460450,1731906632402,-166.099939,0.00015278,2]
[342460451,1731906632412,-72.62039844,0.00015284,2]
[342460452,1731906632435,-93.47954056,0.00015284,2]
[342460453,1731906632444,-532.2941378,0.00015285,2]
[342460454,1731906632454,-166.099939,0.00015291,2]
[342460455,1731906632469,-166.099939,0.00015297,2]
[342460456,1731906632479,-166.099939,0.00015303,2]
[342460457,1731906632488,-300.0,0.0001541,2]
[342460458,1731906632498,-300.0,0.0001541,2]
[342460459,1731906632508,-508.03,0.000155,2]
[342460460,1731906632518,-10075.13189418,0.00015517,2]
[342460461,1731906632528,-6360.02802909,0.00016559,2]
[342460493,1731906638428,-10389.51013851,0.00016559,2]
[342460494,1731906638440,-196.9645208,0.00016759,2]
[342460495,1731906638449,-45500.66776165,0.0001676,2]
[342460496,1731906638459,-276.92735277,0.00016774,2]
[342460497,1731906638470,-188.84523585,0.00016852,2]
[342460498,1731906638480,-420.0,0.00016858,2]
[342460499,1731906638489,-420.0,0.00016951,2]
[342460500,1731906638499,-527.83702256,0.00017732,2]
[342460501,1731906638508,-150.0,0.00017748,2]
[342460502,1731906638517,-223.131,0.00017748,2]
[342460503,1731906638527,-150.0,0.00017748,2]
[342460504,1731906638536,-150.0,0.00017748,2]
[342460505,1731906638546,-530.0,0.00017748,2]
[342460506,1731906638555,-1110.0,0.00017748,2]
[342460507,1731906638564,-2385.0,0.00017748,2]
[342460508,1731906638574,-717.222,0.00017748,2]
[342460509,1731906638584,-2009.254652,0.00018,2]
[342460510,1731906638594,-1023.17823273,0.00018033,2]
[342460511,1731906638603,-7.57260288,0.00018033,2]
[342460521,1731906640186,-2744.64948119,0.00018033,2]
[342460522,1731906640197,-966.54163457,0.00018033,2]
[342460523,1731906640206,-172.8808074,0.00018055,2]
[342460524,1731906640216,-153.0,0.00018055,2]
[342460525,1731906640227,-153.0,0.00018055,2]
[342460526,1731906640236,-153.0,0.00018055,2]
[342460527,1731906640246,-153.0,0.00018055,2]
[342460528,1731906640255,-153.0,0.00018055,2]
[342460529,1731906640265,-153.0,0.00018055,2]
[342460530,1731906640279,-212.2918136,0.00018192,2]
[342460531,1731906640288,-431.5958397,0.00018192,2]
[342460532,1731906640298,-312.2903637,0.00018192,2]
[342460533,1731906640308,-179.60561339,0.00018395,2]
[342460535,1731906640600,-600.0,0.00018411,2]
[342460536,1731906640610,-179.60561335,0.0001842,2]
[342460537,1731906640620,-587.0,0.00018443,2]
[342460538,1731906640630,-179.60561335,0.00018445,2]
[342460539,1731906640639,-179.60561335,0.0001847,2]
[342460540,1731906640649,-1000.0,0.00018495,2]
[342460541,1731906640658,-179.60561335,0.00018495,2]
[342460542,1731906640667,-1000.0,0.000185,2]
[342460543,1731906640676,-1000.0,0.000185,3]
[342460544,1731906640685,-507.24792401,0.00018573,2]
[342460545,1731906640695,-164.78024433,0.00018575,2]
[342460546,1731906640704,-249.7091663,0.00018576,2]
[342460547,1731906640714,-150.16529755,0.00018578,2]
[342460548,1731906640723,-500.0,0.00018592,2]
[342460549,1731906640733,-166.94229731,0.00018592,2]
[342460550,1731906640742,-335.64581766,0.00018592,2]
[342460551,1731906640751,-390.65463156,0.00018592,2]
[342460552,1731906640760,-500.0,0.00018592,2]
[342460553,1731906640770,-500.0,0.00018592,2]
[342460554,1731906640779,-500.0,0.00018592,2]
[342460555,1731906640788,-500.0,0.00018592,2]
[342460556,1731906640797,-500.0,0.00018592,2]
[342460557,1731906640806,-500.0,0.00018592,2]
[342460558,1731906640815,-642.90532664,0.00018592,2]
[342460559,1731906640824,-500.0,0.00018592,2]
[342460560,1731906640834,-500.0,0.00018592,2]
[342460561,1731906640843,-449.83208913,0.00018592,2]
[342460562,1731906640852,-500.0,0.00018592,2]
[342460563,1731906640861,-500.0,0.00018592,2]
[342460564,1731906640870,-500.0,0.00018592,2]
[342460565,1731906640880,-500.0,0.00018592,2]
[342460566,1731906640889,-500.0,0.00018592,2]
[342460567,1731906640899,-500.0,0.00018592,2]
[342460568,1731906640909,-500.0,0.00018592,2]
[342460569,1731906640918,-500.0,0.00018592,2]
[342460570,1731906640927,-500.0,0.00018592,2]
[342460571,1731906640936,-500.0,0.00018592,2]
[342460572,1731906640946,-500.0,0.00018592,2]
[342460573,1731906640955,-500.0,0.00018592,2]
[342460574,1731906640964,-500.0,0.00018592,2]
[342460575,1731906640973,-500.0,0.00018592,2]
[342460576,1731906640983,-500.0,0.00018592,2]
[342460577,1731906640992,-500.0,0.00018592,2]
[342460578,1731906641001,-500.0,0.00018592,2]
[342460579,1731906641010,-500.0,0.00018592,2]
[342460580,1731906641019,-500.0,0.00018592,2]
[342460581,1731906641029,-500.0,0.00018592,2]
[342460582,1731906641037,-500.0,0.00018592,2]
[342460583,1731906641047,-500.0,0.00018592,2]
[342460584,1731906641056,-500.0,0.00018592,2]
[342460585,1731906641065,-500.0,0.00018592,2]
[342460586,1731906641074,-500.0,0.00018592,2]
[342460587,1731906641083,-500.0,0.00018592,2]
[342460588,1731906641093,-500.0,0.00018592,2]
[342460589,1731906641105,-500.0,0.00018592,2]
[342460590,1731906641114,-500.0,0.00018592,2]
[342460591,1731906641123,-500.0,0.00018592,2]
[342460592,1731906641134,-500.0,0.00018592,2]
[342460593,1731906641144,-500.0,0.00018592,2]
[342460594,1731906641154,-500.0,0.00018592,2]
[342460595,1731906641163,-560.68330282,0.00018592,2]
[342460596,1731906641173,-560.68330282,0.00018592,2]
[342460597,1731906641182,-560.68330282,0.00018592,2]
[342460598,1731906641192,-560.68330282,0.00018592,2]
[342460599,1731906641201,-560.68330282,0.00018592,2]
[342460600,1731906641211,-560.68330282,0.00018592,2]
[342460601,1731906641220,-560.68330282,0.00018592,2]
[342460602,1731906641230,-560.68330282,0.00018592,2]
[342460603,1731906641239,-560.68330282,0.00018592,2]
[342460604,1731906641248,-560.68330282,0.00018592,2]
[342460605,1731906641258,-560.68330282,0.00018592,2]
[342460606,1731906641268,-560.68330282,0.00018592,2]
[342460607,1731906641283,-560.68330282,0.00018592,2]
[342460608,1731906641304,-560.68330282,0.00018592,2]
[342460609,1731906641318,-560.68330282,0.00018592,2]
[342460610,1731906641327,-560.68330282,0.00018592,2]
[342460611,1731906641338,-560.68330282,0.00018592,2]
[342460612,1731906641351,-560.68330282,0.00018592,2]
[342460613,1731906641360,-560.68330282,0.00018592,2]
[342460614,1731906641370,-560.68330282,0.00018592,2]
[342460615,1731906641380,-560.68330282,0.00018592,2]
[342460616,1731906641390,-560.68330282,0.00018592,2]
[342460617,1731906641400,-560.68330282,0.00018592,2]
[342460618,1731906641409,-560.68330282,0.00018592,2]
[342460619,1731906641419,-560.68330282,0.00018592,2]
[342460620,1731906641429,-560.68330282,0.00018592,2]
[342460621,1731906641439,-560.68330282,0.00018592,2]
[342460622,1731906641449,-560.68330282,0.00018592,2]
[342460623,1731906641458,-560.68330282,0.00018592,2]
[342460624,1731906641468,-560.68330282,0.00018592,2]
[342460625,1731906641477,-560.68330282,0.00018592,2]
[342460626,1731906641487,-560.68330282,0.00018592,2]
[342460627,1731906641496,-564.4211915,0.00018592,2]
[342460628,1731906641505,-564.4211915,0.00018592,2]
[342460629,1731906641515,-564.4211915,0.00018592,2]
[342460630,1731906641524,-564.4211915,0.00018592,2]
[342460631,1731906641534,-564.4211915,0.00018592,2]
[342460632,1731906641543,-564.4211915,0.00018592,2]
[342460633,1731906641553,-564.4211915,0.00018592,2]
[342460634,1731906641563,-564.4211915,0.00018592,2]
[342460635,1731906641573,-564.4211915,0.00018592,2]
[342460636,1731906641582,-564.4211915,0.00018592,2]
[342460637,1731906641591,-564.4211915,0.00018592,2]
[342460638,1731906641603,-564.4211915,0.00018592,2]
[342460639,1731906641613,-564.4211915,0.00018592,2]
[342460640,1731906641623,-564.4211915,0.00018592,2]
[342460641,1731906641632,-564.4211915,0.00018592,2]
[342460642,1731906641642,-564.4211915,0.00018592,2]
[342460643,1731906641651,-564.4211915,0.00018592,2]
[342460644,1731906641660,-564.4211915,0.00018592,2]
[342460645,1731906641669,-151.0,0.00018593,2]
[342460646,1731906641679,-151.0,0.00018593,2]
[342460647,1731906641689,-225.44329,0.00018593,2]
[342460648,1731906641699,-225.44329,0.00018593,2]
[342460649,1731906641709,-151.0,0.00018593,2]
[342460650,1731906641719,-157.954351,0.00018593,2]
[342460651,1731906641729,-157.954351,0.00018593,2]
[342460652,1731906641739,-36240.3443428,0.00018593,2]
[342460653,1731906641752,-3533.67753625,0.00018593,2]
[342460654,1731906641764,-3734.58833947,0.00018593,2]
[342460668,1731906643284,-376.06385545,0.00018593,2]
[342460671,1731906645696,181.81,0.00010959,2]
[342460690,1731906717748,159.74,0.00010959,2]
[342460691,1731906728435,798.73,0.00010959,2]
[342460694,1731906738975,833.94,0.00010959,2]
[342460699,1731907028054,9740.14064606,0.0002821,120]
[342460705,1731907243425,166.72,0.00010959,2]
[342460706,1731907264252,833.64,0.00010959,2]
[342460820,1731907843479,-2360.2347975,0.00017471,2]
[342460822,1731907843490,-300.0,0.00017758,2]
[342460824,1731907843500,-188.58248723,0.00017758,2]
[342460855,1731908329927,354.38891,0.000282,120]
[342460864,1731908943064,152.1,0.0001401,2]
[342460913,1731909038804,-300.0,0.00016589,2]
[342460914,1731909038814,-24880.0,0.0001659,2]
[342460915,1731909038824,-2886.43780228,0.00017068,2]
[342460930,1731909040512,-113.56219772,0.00017068,2]
[342460931,1731909040521,-235.4313208,0.0001727,2]
[342460932,1731909040531,-5808.81449318,0.00017501,2]
[342460933,1731909040541,-150.0,0.00017645,2]
[342460934,1731909040551,-530.0,0.00017645,2]
[342460935,1731909040559,-694.9770903,0.00017645,2]
[342460947,1731909043725,-415.0229097,0.00017645,2]
[342460948,1731909043735,-1581.01431084,0.00017645,2]
[342460950,1731909043756,-803.98568916,0.00017645,2]
[342460951,1731909043766,-644.36108972,0.00017645,2]